Cogmind - Beta 15 @@@ ROGUE MODE // 2025.07.18 @ 13:29:05 Player: Annull999 Result: Destroyed by as-69160 with Assembled Blade Performance ------------- Evolutions (1) 500 Regions Visited (4) 800 Robots Destroyed (37) 185 Value Destroyed (861) 861 Prototype IDs (0) 0 Alien Tech Used (0) 0 Bonus (0) 0 TOTAL SCORE: 2346 Bonus ------- None Cogmind --------- Core Integrity 0/400 Matter 300/300 Energy 100/100 System Corruption 3% Temperature Cool (0) Movement Rolling (115) Ox1 Location -9/Mines Parts ------- > --- POWER (1) -------- (None) > --- PROPULSION (4) --- Aluminum Leg Aluminum Leg Compact Wheel > --- UTILITY (2) ------ Large Storage Unit > --- WEAPON (2) ------- Heavy Assault Rifle > --- INVENTORY (15) --- Light Ion Engine Wheel Wheel Wheel Wheel Small Storage Unit Large Storage Unit Large Storage Unit Huge Storage Unit Peak State ------------ > --- POWER ------------ Improved Ion Engine > --- PROPULSION ------- Light Treads Light Treads Aluminum Leg Wheel > --- UTILITY ---------- Large Storage Unit Seismic Detector > --- WEAPON ----------- Beam Rifle Light Cannon > --- INVENTORY -------- Light Ion Engine Light Ion Engine Compact Wheel Compact Wheel Small Storage Unit Huge Storage Unit Heavy Assault Rifle Rocket Launcher Mining Laser [Rating: 12] Favorites ----------- Power Ion Engine Engine Ion Engine Propulsion Aluminum Leg Treads Light Treads Leg Aluminum Leg Wheel Wheel Utility Large Storage Unit Device Seismic Detector Storage Large Storage Unit Weapon Light Assault Rifle Energy Gun Medium Laser Ballistic Gun Light Assault Rifle Ballistic Cannon Light Cannon Launcher Rocket Launcher Special Weapon Mining Laser Build | -11 -10 -10 -9 -9 ------- Run | Yrd Mat Min Mat Min Slots Evolved 2 | . . . 2 . Power . | . . . . . Propulsion 2 | . . . 2 . Utility . | . . . . . Weapon . | . . . . . Parts Attached 27 | . 10 3 8 6 Power 4 | . 2 . 1 1 Engine 4 | . 2 . 1 1 Core . | . . . . . Reactor . | . . . . . Propulsion 12 | . 3 1 4 4 Treads 2 | . . . 2 . Leg 6 | . 3 1 . 2 Wheel 4 | . . . 2 2 Hover . | . . . . . Flight . | . . . . . Utility 2 | . 1 . 1 . Device 1 | . . . 1 . Storage 1 | . 1 . . . Processor . | . . . . . Hackware . | . . . . . Protection . | . . . . . Artifact . | . . . . . Weapon 9 | . 4 2 2 1 Energy Gun 4 | . 3 . 1 . Energy Cannon . | . . . . . Ballistic Gun 2 | . 1 . . 1 Ballistic Cannon 1 | . . . 1 . Launcher 1 | . . 1 . . Special Weapon 1 | . . 1 . . Impact Weapon . | . . . . . Slashing Weapon . | . . . . . Piercing Weapon . | . . . . . Special Melee Weapon . | . . . . . Unidentified Prototypes . | . . . . . Parts Lost 22 | . 3 3 4 12 Power 4 | . 1 . 1 2 Propulsion 9 | . 1 1 2 5 Utility 1 | . . . . 1 Weapon 8 | . 1 2 1 4 Highest Loss Streak 8 | . 2 2 2 8 To Critical Strikes . | . . . . . Average Backups 9 | . 8 12 9 8 Power 1 | . 1 2 2 1 Propulsion 3 | . 4 6 2 1 Utility 2 | . . 1 2 4 Weapon 1 | . . 2 2 1 Tool/Special . | . . . . . Unused Backups 7 | . 1 . . 6 Power 1 | . . . . 1 Propulsion 2 | . . . . 2 Utility 4 | . 1 . . 3 Weapon . | . . . . . Tool/Special . | . . . . . Average Slot Usage (%) 92 | . 93 98 98 86 Engine 12 | . 13 14 10 10 Treads 6 | . . . 14 12 Leg 21 | . 27 27 13 16 Wheel 6 | . . . 15 12 Device 3 | . . . 9 5 Storage 17 | . 23 28 12 11 Energy Gun 10 | . 13 14 11 5 Ballistic Gun 7 | . 13 9 . 5 Ballistic Cannon 3 | . . . 8 5 Special Weapon 1 | . . 1 2 1 Peak Build Rating 12 | . 8 9 12 12 Average Rating 8 | . 6 8 10 9 On Entrance 8 | 6 6 8 8 12 Naked Turns . | . . . . . Heaviest Build 36 | 11 33 36 34 35 Greatest Support 26 | 20 20 20 20 26 Greatest Overweight (x) 3 | . 2 1 3 3 Average Overweight (x) 1 | . . 1 2 1 Largest Inventory Capacity 15 | . 15 15 15 15 Average Capacity 14 | . 12 15 15 15 Most Carried 13 | . 12 13 11 11 Average Carried 9 | . 8 12 9 8 Final Capacity 15 | 8 15 15 15 15 Final Carried 12 | 6 12 10 11 9 Class Distribution -------------------- 85% | Mutant 14% | Scavenger-Mutant Dominant Class ---------------- Mutant | -10/Materials Mutant | -10/Mines Mutant | -9/Materials Mutant | -9/Mines Resources | -11 -10 -10 -9 -9 ----------- Run | Yrd Mat Min Mat Min Matter Collected 675 | 200 124 63 172 116 Remotely . | . . . . . Salvage Created 911 | . 417 153 285 56 Parts 62 | . 24 20 14 4 Haulers Intercepted . | . . . . . Recyclers Shooed 1 | . 1 . . . Parts Field Recycled . | . . . . . Retrieved Matter . | . . . . . Parts Self-Destructed . | . . . . . Prevented . | . . . . . Kills | -11 -10 -10 -9 -9 ------- Run | Yrd Mat Min Mat Min Combat Hostiles Destroyed 33 | . 10 8 11 4 Guns 13 | . 8 4 . 1 Cannons 11 | . . . 11 . AOE 9 | . 2 4 . 3 Classes Destroyed 7 | . 4 1 1 1 Worker 2 | . 2 . . . Builder 1 | . . 1 . . Recycler 1 | . 1 . . . Swarmer 16 | . 6 6 4 . Grunt 12 | . 4 2 4 2 Sentry 3 | . . . 3 . Demolisher 2 | . . . . 2 Best Kill Streak 6 | . 5 6 6 4 Combat Bots Only 6 | . 4 5 6 4 Max Kills in Single Turn 3 | . 1 3 1 2 Gunslinging . | . . . . . Exploded 2 | . 1 2 . 2 Melee . | . . . . . Uniques/NPCs Destroyed . | . . . . . Combat | -11 -10 -10 -9 -9 -------- Run | Yrd Mat Min Mat Min Hostile Shots Fired 223 | . 62 35 85 41 Missed 51 | . 13 12 20 6 Hits 172 | . 49 23 65 35 Melee 8 | . . . . 8 Projectile 164 | . 49 23 65 27 AOE 13 | . . . . 13 Critical Strikes 4 | . 1 . 1 2 Damage Taken 2341 | . 566 255 608 912 Core 620 | . 149 45 104 322 Absorbed by Shields . | . . . . . Core Remaining (%) 61 | 100 . 22 . . Volleys Fired 96 | . 38 16 29 13 Largest 2 | . 2 2 2 2 Hottest 156 | . 70 90 156 86 Shots Fired 175 | . 76 22 58 19 Gun 134 | . 76 19 29 10 Cannon 34 | . . . 28 6 Launcher 6 | . . 3 . 3 Special 1 | . . . 1 . Kinetic 77 | . 38 2 28 9 Thermal 88 | . 34 17 30 7 Explosive 6 | . . 3 . 3 Electromagnetic 4 | . 4 . . . Robot Hit Streak 10 | . 8 3 6 10 Robot Miss Streak 5 | . 4 3 5 4 Penetration Max . | . . . . . Secondary Targets . | . . . . . Shots Hit Robots 106 | . 50 10 35 11 Core Hits 56 | . 24 10 14 8 Critical Kills . | . . . . . Critical Parts Destroyed . | . . . . . Critical Strikes 6 | . 4 . . 2 Burn 6 | . 4 . . 2 Melee Attacks . | . . . . . Impact . | . . . . . Slashing . | . . . . . Piercing . | . . . . . Sneak Attacks . | . . . . . Combat Hostiles . | . . . . . Follow-up Attacks . | . . . . . Damage Inflicted 1931 | . 654 381 604 292 Guns 975 | . 544 99 247 85 Cannons 432 | . . . 357 75 Explosions 524 | . 110 282 . 132 Melee . | . . . . . Ramming . | . . . . . Kinetic 644 | . 188 10 357 89 Thermal 840 | . 433 89 247 71 Explosive 414 | . . 282 . 132 Electromagnetic 33 | . 33 . . . Impact . | . . . . . Slashing . | . . . . . Piercing . | . . . . . Highest Corruption 3 | . . . . 3 Average Corruption 3 | . . . . 3 Corruption Purged . | . . . . . Corruption Blocked . | . . . . . Effects 2 | . . . . 2 Matter Fused 1 | . . . . 1 Energy Discharges 1 | . . . . 1 Overload Shots . | . . . . . Overflow Damage 2 | . 1 . . 1 Projectiles . | . . . . . Explosions 2 | . 1 . . 1 Melee . | . . . . . Knockbacks 3 | . . . 3 . Impact . | . . . . . Kinetic 2 | . . . 2 . Secondary 1 | . . . 1 . Self-Inflicted Damage 134 | . 25 70 . 39 Shots 6 | . 2 2 . 2 Rammed . | . . . . . Targets Rammed . | . . . . . Kicked . | . . . . . Crushed . | . . . . . Highest Temperature 295 | . 295 100 153 108 Average Temperature 81 | . 117 43 61 42 Received Heat Transfer 462 | . 225 . 138 99 Effects 1 | . 1 . . . Energy Bleed 1 | . 1 . . . Siege Activations . | . . . . . Martial Activations . | . . . . . Shielding Activations . | . . . . . Robots Disrupted . | . . . . . Combat Hostiles . | . . . . . Robots Corrupted . | . . . . . Combat Hostiles . | . . . . . Parts Fried . | . . . . . Impact Corruptions . | . . . . . Robots Melted . | . . . . . Combat Hostiles . | . . . . . Parts Melted 4 | . 3 . 1 . Heat Transferred 2534 | . 1313 259 629 333 Parts Sabotaged . | . . . . . Parts Stolen . | . . . . . Parts Stripped . | . . . . . Power Chain Reactions 2 | . 2 . . . Alert | -11 -10 -10 -9 -9 ------- Run | Yrd Mat Min Mat Min Maximum Alert Level . | . . . . . Low Security (%) 100 | . 100 100 100 100 Level 1 . | . . . . . Level 2 . | . . . . . Level 3 . | . . . . . Level 4 . | . . . . . Level 5 . | . . . . . High Security . | . . . . . Max Security . | . . . . . Peak Influence 183 | . 103 183 120 89 Initial 63 | . . 14 63 28 Average 41 | . 54 43 64 15 Influence Increases 1026 | . 294 223 295 214 Destroy 0b10 Robot/C 660 | . 200 160 220 80 Destroy 0b10 Robot/NC 20 | . 15 5 . . Destroy Leader 150 | . 40 30 70 10 Successful Hack 20 | . 16 . 4 . Destroy Structure 56 | . 8 28 1 19 Lose Combat Pursuer 120 | . 15 . . 105 Influence Decreases 1026 | . 256 98 384 288 Entered New Map 170 | . . 24 100 46 Time Decay 578 | . 226 54 140 158 Lost Part 174 | . 30 20 40 84 Purge Threat 104 | . . . 104 . Squads Dispatched 4 | . 1 . 3 . Investigation 3 | . 1 . 2 . Extermination . | . . . . . Reinforcement 1 | . . . 1 . Assault . | . . . . . Garrison . | . . . . . Intercept . | . . . . . Searches Triggered . | . . . . . Construction Impeded . | . . . . . Haulers Reinforced . | . . . . . Active Scanning Responses . | . . . . . Cargo Convoy Interrupts . | . . . . . Stealth | -11 -10 -10 -9 -9 --------- Run | Yrd Mat Min Mat Min Distress Signals 4 | . 2 . 1 1 Communications Jammed . | . . . . . Distress Signals . | . . . . . Times Spotted 50 | . 15 8 14 13 Peak Tracking Total 5 | . 4 3 5 5 Tactical Retreats 5 | . 1 . . 4 Traps | -11 -10 -10 -9 -9 ------- Run | Yrd Mat Min Mat Min Traps Triggered 4 | . 4 . . . Indirectly . | . . . . . Trap Hack Attempts . | . . . . . Triggered . | . . . . . Disarmed . | . . . . . Reprogrammed . | . . . . . Reused . | . . . . . Traps Extracted . | . . . . . Installed . | . . . . . Triggered . | . . . . . Machines | -11 -10 -10 -9 -9 ---------- Run | Yrd Mat Min Mat Min Machines Disabled . | . . . . . Max in Single Turn . | . . . . . Machines Repaired . | . . . . . Machines Dismantled . | . . . . . Machines Sabotaged . | . . . . . Overloaded Fab Kills . | . . . . . Hacking | -11 -10 -10 -9 -9 --------- Run | Yrd Mat Min Mat Min Machines Accessed 4 | . 1 . 3 . Terminals 4 | . 1 . 3 . Fabricators . | . . . . . Repair Stations . | . . . . . Recycling Units . | . . . . . Scanalyzers . | . . . . . Garrison Access . | . . . . . Total Hacks 13 | . 2 . 11 . Successful 4 | . 1 . 3 . Failed 9 | . 1 . 8 . Catastrophic 4 | . . . 4 . Database Lockouts . | . . . . . Manual 3 | . . . 3 . Terminals 13 | . 2 . 11 . Fabricators . | . . . . . Repair Stations . | . . . . . Recycling Units . | . . . . . Scanalyzers . | . . . . . Garrison Access . | . . . . . Terminal Hacks 4 | . 1 . 3 . Branch Access Points 1 | . 1 . . . Alert Level 1 | . . . 1 . Unreport Threat 1 | . . . 1 . Locate Traps 1 | . . . 1 . Fabricator Hacks . | . . . . . Repair Station Hacks . | . . . . . Recycling Unit Hacks . | . . . . . Scanalyzer . | . . . . . Garrison Access Hacks . | . . . . . Unauthorized Hacks . | . . . . . Terminals . | . . . . . Fabricators . | . . . . . Repair Stations . | . . . . . Recycling Units . | . . . . . Scanalyzers . | . . . . . Garrison Access . | . . . . . Data Cores Recovered . | . . . . . Used . | . . . . . Hacking Detections 4 | . 1 . 3 . Full Trace Events 2 | . . . 2 . Feedback Events . | . . . . . Feedback Blocked . | . . . . . Robot Schematics Acquired . | . . . . . Robots Built . | . . . . . Authchips . | . . . . . Time . | . . . . . Total Robot Build Rating . | . . . . . Part Schematics Acquired . | . . . . . Parts Built . | . . . . . Authchips . | . . . . . Time . | . . . . . Total Part Build Rating . | . . . . . Parts Repaired . | . . . . . Time . | . . . . . Parts Recycled . | . . . . . Recycled Matter . | . . . . . Retrieved Matter . | . . . . . Retrieved Components . | . . . . . Parts Scanalyzed . | . . . . . Part Schematics Acquired . | . . . . . Parts Damaged . | . . . . . Bothacking | -11 -10 -10 -9 -9 ------------ Run | Yrd Mat Min Mat Min Used RIF Installer . | . . . . . Robots Hacked . | . . . . . Non-combat . | . . . . . Combat . | . . . . . Robot Hacks Applied . | . . . . . Relay Couplers Released . | . . . . . Fabnet Peak Effective % . | . . . . . Robots Rewired . | . . . . . Allies Hacked . | . . . . . Hacks Repelled . | . . . . . Allies | -11 -10 -10 -9 -9 -------- Run | Yrd Mat Min Mat Min Total Allies . | . . . . . Largest Group . | . . . . . Highest-Rated Group . | . . . . . Highest-Rated Ally . | . . . . . Total Orders . | . . . . . Ally Attacks . | . . . . . Total Damage . | . . . . . Kills . | . . . . . Allies Corrupted . | . . . . . Allies Melted . | . . . . . Intel | -11 -10 -10 -9 -9 ------- Run | Yrd Mat Min Mat Min Active Infowar (turns) 559 | . . . 286 273 Seismic 559 | . . . 286 273 Robot Analysis Total . | . . . . . Derelict Logs Recovered 2 | . . . . 2 Drone Launches . | . . . . . Drone Recoveries . | . . . . . Exploration | -11 -10 -10 -9 -9 ------------- Run | Yrd Mat Min Mat Min Turns Passed 1670 | . 531 262 324 553 Spaces Moved 958 | 1 243 109 193 412 Core 1 | . 1 . . . Treads . | . . . . . Legs 382 | 1 242 109 . 30 Wheels 575 | . . . 193 382 Hover . | . . . . . Flight . | . . . . . Fastest Speed 95 | 120 120 190 95 105 Average Speed 136 | 120 158 190 111 122 Slowest Speed 190 | 120 190 190 125 190 Overloaded Moves . | . . . . . Propulsion Burnouts . | . . . . . Robots Hopped . | . . . . . Potential Cave-ins . | . . . . . Cave-ins Triggered . | . . . . . Exploration Rate (%) 30 | 2 42 22 22 65 Regions Visited 4 Branch Regions 2 Pre-discovered Areas . | . . . . . Known Exits Taken 1 | . 1 . . . Unknown Exits Taken 3 | 1 . 1 1 . Scrap Searched . | . . . . . Spaces Dug . | . . . . . Terrain Destroyed 76 | . 9 38 1 28 Melee . | . . . . . Projectile 1 | . . . 1 . AOE 75 | . 9 38 . 28 Terrain Rammed . | . . . . . Walls Destroyed . | . . . . . Machines Disabled . | . . . . . Actions | -11 -10 -10 -9 -9 --------- Run | Yrd Mat Min Mat Min Total 1144 | . 320 142 241 441 Wait 33 | . 15 13 5 . Move 954 | . 242 108 192 412 Hop . | . . . . . Pick Up 29 | . 15 1 7 6 Fast Attach . | . . . . . Attach 26 | . 9 3 6 8 Detach . | . . . . . Swap 6 | . 1 1 2 2 Drop . | . . . . . Fire 96 | . 38 16 29 13 Melee . | . . . . . Ram . | . . . . . Kick . | . . . . . Crush . | . . . . . Escape Stasis . | . . . . . Rewire . | . . . . . Trap . | . . . . . Miscellaneous . | . . . . . Route ------- -11/Scrapyard -10/Materials -10/Mines -9/Materials -9/Mines History --------- Turn | Location | Event 1 | -11/Scrapyard | Discovered new exit (range 0) 1 | -11/Scrapyard | Entered Materials 251 | -10/Materials | Identified exit to Mines 318 | -10/Materials | Build established: Mutant 351 | -10/Materials | Core integrity fell below 50% 532 | -10/Materials | Entered Mines 610 | -10/Mines | Received a Rocket Launcher from a helpful Derelict 741 | -10/Mines | Discovered new exit (range 10) 794 | -10/Mines | Entered Materials 794 | -9/Materials | Evolved 2 slots: Propulsion x2 1108 | -9/Materials | Discovered new exit (range 9) 1118 | -9/Materials | Entered Mines 1119 | -9/Mines | Assembled infested the area 1163 | -9/Mines | Learned Materials stockpile data 1213 | -9/Mines | Learned Materials emergency access door positions 1390 | -9/Mines | Core integrity fell below 50% 1430 | -9/Mines | Lost 8 parts (1p3n1u3w) 1483 | -9/Mines | Core integrity fell below 20% 1671 | -9/Mines | Destroyed by as-69160 with Assembled Blade Last Messages --------------- 01465_ Acquired 5 matter. 01470_ K-01 Serf collects debris. 01470_ Acquired 6 matter. 01479_ The unstable cave ceiling collapses. 01480_ Lgt. Treads destroyed. 01480_ System corrupted by crushing effect (+3). 01485_ Critical hit (Burn: +37). 01485_ Mining Laser destroyed. 01503_ Acquired Corrupted Wheel. 01505_ Acquired 23 matter. 01507_ Acquired Corrupted Wheel. 01579_ System corrupted: Energy discharge (-25). 01628_ System corrupted: Matter fused (-7). 01646_ R-06 Scavenger collects Sml. Matter Pod. 01648_ Lgt. Ion Engine destroyed. 01648_ Acquired Wheel. 01651_ K-01 Serf collects debris. 01659_ as-69160 sneak attacks. 01659_ K-01 Serf destroyed. 01666_ Aluminum Leg destroyed. Map ----- +----------------------------------------------------+ | ??# ###??####???# #????###????????????? | | ??## ##???# #??# #???# ####?????????? | | ???## # #???# ### #??# ##????????? | | ????## # ###???# ### #????????? | | ?????# # #????# #????????? | | ?????# ########## #????????? | | ?????## ## ####### #??????? | | ??????## #????##* ## #??????? | | ??????# ####### #?? #### #??????? | | ??????### % ### ##??##???????????? | | ????????## ##?# ##??????????????? | | ?????????## #% ##??# ### #???????? ????? | | ??????????## ##??#???# #???### ???? | | ?????###### #### #?# !% ##?? ???? | | ????# % #?## * ### ???? | | ????# ###### #####??## #??????????? | | ???????????## #???????### #??????????? | | ????????????## #?????????## ######??????????? | | ?????????????# #??????????# #???????????????? | | ?????????????## ##??????????# #???????????????? | | ??????????????## #???????????# ##??????????????? | | ???????????????# #??????????## ####???????????? | | ???????????????# #????????### ##??????????? | | ???????????????# #??####### #??????????? | | ???????????????# #??# #??????????? | | ??????????????## #### k @a #??????????? | | ?????""???????#!!= ##### ##??????????? | | """ """ ?????# #######???### #######???????????? | | ???# #???????????####?????????????????? | | ## #????????????????????????????????? | | #????????????????????????????????? | | #????????????????????????????????? | | ??###############????????????????????????????????? | | ?????????????????????????????????????????????????? | | | | | | | | | | | | | | | | | | | | | | | | | | | | | | | | | +----------------------------------------------------+ Best States ------------- Heat Dissipation 28 Energy Generation 12 Energy Capacity 265 Matter Stores 300 Matter Capacity 300 Sight Range 16 Terrain Scan Density 10 Evasion (%) 55 Item Schematics ----------------- None Robot Schematics ------------------ None Fabricated ------------ Nothing Repaired ---------- Nothing Alien Tech Used ----------------- None Achievements -------------- None Challenges ------------ None Game ------ Seed ChipChainStick Manual? 0 Play Time 00:16:43 Cumulative 22.7 hours Start 2025.07.16 @ 21:19:19 End 2025.07.18 @ 13:29:05 Sessions 4 Manual Loads 0 Difficulty Rogue Special Mode None Game No. 40 Rogue 40 Adventurer 0 Explorer 0 Win Type - Total 0 Types 0/0/0/0/0/0/0/0/0/0 Lore% 6 Gallery% 19 Achievement% 20 Wizard Run 0 Options --------- Layout 0 ASCII 1 Keyboard 0 Movement Numpad Keybinds 0 Fullscreen 1 Font 18/TerminusBold Map View 38x25 Zoom Use 73% Tactical HUD 1 Map Filters NONE Filters NONE Steam 1 RUN: 13027e9e-eb93-4e4c-9abf-8e775fffc626